bitfinex-derivatives/quotes_ETHF0:USTF0_20250927
["timestamp","ask_amount","ask_price","bid_price","bid_amount"]
[1759003491881,0.7537,4007.9,4007.8,3.99679468]
[1759003492284,0.7537,4007.9,4007.8,4.21159468]
[1759003492494,0.7537,4007.9,4007.8,3.95959468]
[1759003492694,0.7537,4007.9,4007.8,4.21159468]
[1759003494488,0.7537,4007.9,4007.8,3.64819468]
[1759003494689,0.7537,4007.9,4007.8,3.46219468]
[1759003496299,0.7537,4007.9,4007.8,0.25439468]
[1759003500900,0.7537,4007.9,4007.8,0.00239468]
[1759003501095,0.86842,4007.3,4007.0,0.326]
[1759003501296,2.24432,4007.8,4006.6,0.89276085]
[1759003501297,0.7475,4006.9,4006.8,0.7522]
[1759003501492,0.77695,4007.1,4007.0,0.4262]
[1759003501697,0.77695,4007.1,4007.0,0.7522]
[1759003501899,1.19645,4007.1,4007.0,2.1937454]
[1759003502200,1.19645,4007.1,4007.0,2.44862477]
[1759003503604,0.7475,4007.1,4007.0,2.44862477]
[1759003503807,0.5355,4007.1,4007.0,2.44862477]
[1759003509612,0.5355,4007.1,4007.0,2.19662477]
[1759003509911,0.7475,4007.1,4007.0,2.44862477]
[1759003510101,1.19644,4007.1,4007.0,2.44862477]
[1759003512813,1.19644,4007.1,4006.5,0.3323]
[1759003512814,0.44899,4006.7,4006.5,0.3323]
[1759003513112,0.44899,4006.7,4006.4,1.11859063]
[1759003513113,1.18909,4006.7,4006.6,1.028]
[1759003513814,1.18909,4006.7,4006.6,1.0306271]
[1759003516106,1.18909,4006.7,4006.6,0.6983271]
[1759003516509,1.18909,4006.7,4006.6,1.0306271]
[1759003517009,1.18909,4006.7,4006.6,0.7786271]
[1759003517209,1.18909,4006.7,4006.6,1.0306271]
[1759003524413,3.2078,4007.1,4006.9,0.44895]
[1759003524612,0.3278,4007.2,4007.1,0.551]
[1759003524811,0.3278,4007.2,4007.1,0.7616]
[1759003525408,0.7776,4007.2,4007.1,1.0126]
[1759003530525,0.7776,4007.2,4007.1,0.7616]
[1759003530725,0.7776,4007.2,4007.1,1.0126]
[1759003533425,0.3278,4006.9,4006.8,0.66957063]
[1759003533729,0.7776,4006.8,4006.7,3.87737063]
[1759003533923,0.7776,4006.8,4006.7,4.12837063]
[1759003534120,0.7776,4006.8,4006.7,4.34817063]
[1759003534530,0.7776,4006.8,4006.7,4.09717063]
[1759003534726,0.7776,4006.8,4006.7,3.6786]
[1759003535724,0.7776,4006.8,4006.7,3.4276]
[1759003536021,0.7776,4006.8,4006.6,0.67219773]
[1759003536022,1.22658,4006.7,4006.6,0.2536271]
[1759003536630,1.22658,4006.7,4006.6,0.4734271]
[1759003542230,1.22658,4006.7,4006.6,0.2224271]
[1759003542530,0.3535,4006.0,4005.9,0.67031646]
[1759003542719,0.9083,4006.0,4005.9,0.251]
[1759003543131,0.4498,4005.8,4005.7,4.42911646]
[1759003543323,0.7776,4005.8,4005.7,4.01297429]
[1759003543631,0.7776,4005.8,4005.7,4.22357429]
[1759003551427,0.7776,4005.8,4005.7,3.97257429]
[1759003551725,0.7776,4005.8,4005.7,4.22357429]
[1759003552438,1.22669,4005.8,4005.7,4.22357429]
[1759003554433,1.22669,4005.8,4005.7,0.22297429]
[1759003554637,1.79831518,4005.9,4005.2,3.4197]
[1759003554638,0.88804,4005.3,4005.2,3.4197]
[1759003554827,0.88804,4005.3,4005.2,3.6707]
[1759003554828,1.22144,4005.3,4005.2,3.6707]
[1759003555030,1.22144,4005.3,4005.2,0.4629]
[1759003555231,0.2181,4004.8,4004.7,0.4205]
[1759003555539,0.7723,4004.8,4004.7,0.9795]
[1759003555731,0.77423302,4004.8,4004.7,0.98182878]
[1759003556835,0.00193302,4004.8,4004.7,5.98182878]
[1759003557033,0.00193302,4004.8,4004.7,0.98182878]
[1759003566046,3.2078,4005.7,4004.8,1.123]
[1759003566242,3.2078,4005.7,4005.6,0.7285]
[1759003566243,3.5412,4005.7,4005.6,0.7285]
[1759003566437,3.7593,4005.7,4005.6,0.9795]
[1759003566843,3.9801,4005.7,4005.6,0.9795]
[1759003567041,3.98249618,4005.7,4005.6,0.9795]
[1759003573861,3.98249618,4005.7,4005.6,0.6715]
[1759003574662,3.98249618,4005.7,4005.6,1.0053]
[1759003575656,0.44911,4005.6,4005.3,1.45190491]
[1759003575860,0.7495,4005.4,4005.3,1.88700491]
[1759003576159,0.7495,4005.4,4005.3,2.13800491]
[1759003583280,0.7495,4005.4,4005.3,1.46904]
[1759003584879,0.7495,4005.4,4005.3,0.7689]
[1759003585079,0.7495,4005.4,4005.3,1.35748847]
[1759003585275,0.7495,4005.4,4005.3,0.4746]
[1759003586180,1.19863,4005.4,4005.3,0.4746]
[1759003587587,1.19863,4005.4,4005.3,0.2236]
[1759003587786,1.19863,4005.4,4005.3,0.251]
[1759003588087,1.19874,4005.3,4005.2,0.67138847]
[1759003588281,0.44917,4005.0,4004.9,0.67138847]
[1759003588485,0.44917,4005.0,4004.9,0.92238847]
[1759003588486,3.13318518,4005.0,4004.9,0.92238847]
[1759003590376,3.13318518,4005.0,4004.9,0.67138847]
[1759003590582,1.1988,4004.8,4004.7,0.92471725]
[1759003591183,1.1988,4004.8,4004.7,0.25332878]
[1759003593880,1.1988,4004.8,4004.7,0.00232878]
[1759003594084,0.7496,4004.7,4004.6,3.2078]
[1759003594390,0.7496,4004.7,4004.6,3.4588]
[1759003594584,1.19882,4004.6,4004.5,0.67138847]
[1759003594790,1.19882,4004.6,4004.5,0.251]
[1759003594986,1.19882,4004.6,4004.5,0.25328816]
[1759003595187,1.19882,4004.6,4004.5,0.00228816]
[1759003597695,0.7496,4004.2,4004.1,3.2078]
[1759003597891,0.7496,4004.2,4004.1,3.4588]
[1759003598692,0.7496,4004.2,4004.1,3.46186061]
[1759003598890,0.7496,4004.2,4004.1,3.67276061]
[1759003600602,0.7496,4004.2,4003.9,0.67138847]
[1759003600603,0.1361,4004.0,4003.9,0.67138847]
[1759003600901,0.44939,4003.1,4003.0,3.87918847]
[1759003601092,0.44939,4003.1,4002.9,0.0249822]
[1759003601093,0.8857,4003.0,4002.9,0.5469822]
[1759003601292,0.5408,4003.0,4002.9,0.7628822]
[1759003601495,3.5292,4003.2,4003.0,0.4343]
[1759003601688,3.5292,4003.2,4003.1,1.18729]
[1759003601889,0.5408,4003.5,4003.4,0.7379]
[1759003602499,0.7496,4003.5,4003.4,0.9909]
[1759003603288,0.8857,4003.5,4003.4,0.6798]
[1759003604097,0.8857,4003.5,4003.4,0.9909]
[1759003606396,0.8857,4003.5,4003.4,0.6798]
[1759003608100,0.8857,4003.5,4003.4,0.4629]
[1759003608405,0.8857,4003.5,4003.4,0.9899]
[1759003608604,0.7496,4003.5,4003.4,0.9899]
[1759003612111,0.8857,4003.5,4003.4,0.9899]
[1759003612407,0.5408,4003.6,4003.5,1.18724]
[1759003613706,0.7496,4003.6,4003.5,0.7379]
[1759003613912,2.19446346,4003.6,4003.5,0.4268]
[1759003614311,2.19446346,4003.6,4003.5,0.2109]
[1759003618113,2.19446346,4003.6,4003.4,0.70135]
[1759003618310,0.5838,4003.5,4003.4,0.70135]
[1759003618513,0.9205,4003.5,4003.4,0.91115]
[1759003619513,0.9205,4003.5,4003.4,1.46335]
[1759003623612,0.7875,4003.5,4003.4,1.46335]
[1759003625615,0.5633,4003.5,4003.4,1.46335]
[1759003630419,0.5633,4003.5,4003.4,2.13214013]
[1759003632115,0.5633,4003.5,4003.4,1.68279013]
[1759003635019,0.9067,4003.5,4003.4,1.34389013]
[1759003635217,1.35604,4003.5,4003.4,1.13059013]
[1759003635408,1.35604,4003.5,4003.4,0.92079013]
[1759003637124,1.35604,4003.5,4003.4,0.66879013]
[1759003637317,1.35604,4003.5,4003.4,0.92079013]
[1759003637925,1.35604,4003.5,4003.4,1.14459013]
[1759003640024,1.35604,4003.5,4003.4,1.48039013]
[1759003640426,1.35604,4003.5,4003.4,1.68939013]
[1759003642126,0.9067,4003.5,4003.4,1.68939013]
[1759003642529,1.35604,4003.5,4003.4,1.68939013]
[1759003649133,0.9067,4003.5,4003.4,1.68939013]
[1759003649620,1.35604,4003.5,4003.4,1.68939013]
[1759003650936,1.23164,4003.5,4003.4,1.68939013]
[1759003651932,0.7823,4003.5,4003.4,2.13875013]
[1759003652131,0.7823,4003.5,4003.4,1.68939013]
[1759003655332,0.7823,4003.5,4003.4,2.13875013]
[1759003655831,0.7823,4003.5,4003.4,1.68939013]
[1759003658735,0.7823,4003.5,4003.4,1.0206]
[1759003661632,0.7823,4003.5,4003.4,1.69332591]
[1759003667539,1.23164,4003.5,4003.4,1.69332591]
[1759003670641,1.23164,4003.5,4003.4,1.0206]
[1759003671841,0.7823,4003.5,4003.4,1.0206]
[1759003672043,3.2078,4004.0,4003.9,0.3204]
[1759003672242,3.43,4004.5,4004.4,0.7441]
[1759003672445,3.6561,4004.5,4004.4,0.7441]
[1759003672934,3.9945,4004.5,4004.4,0.7441]
[1759003673135,4.1233,4004.5,4004.4,0.7441]
[1759003674141,3.7684,4004.5,4004.4,0.7441]
[1759003675042,4.1174,4004.5,4004.4,0.7441]
[1759003678451,3.9886,4004.5,4004.4,1.19334]
[1759003680043,4.1174,4004.5,4004.4,0.7441]
[1759003684051,3.5588,4004.5,4004.4,0.7441]
[1759003684245,0.3145,4005.0,4004.9,1.21048]
[1759003684446,0.3145,4005.0,4004.9,1.46148]
[1759003685655,0.758,4005.4,4005.3,1.21044]
[1759003686550,0.758,4005.4,4005.3,0.7613]
[1759003688657,0.758,4005.4,4005.3,1.0133]
[1759003689756,0.758,4005.4,4005.3,0.4656]
[1759003690451,0.758,4005.4,4005.3,0.7986]
[1759003692358,0.758,4005.4,4005.3,0.5466]
[1759003692560,0.758,4005.4,4005.3,0.7986]
[1759003693262,0.758,4005.4,4005.3,1.0121]
[1759003703558,0.758,4005.4,4005.3,1.46124]
[1759003704464,0.3145,4005.4,4005.3,1.46124]
[1759003704766,0.537,4005.4,4005.3,1.46124]
[1759003705761,0.54019618,4005.7,4005.6,1.19111]
[1759003706966,0.54019618,4005.7,4005.6,1.44211]
[1759003709870,0.75629618,4005.7,4005.6,1.44211]
[1759003719279,0.75629618,4005.7,4005.6,2.11078902]
[1759003722983,0.00239618,4005.7,4005.6,2.11078902]
[1759003723586,0.00239618,4005.7,4005.6,1.85978902]
[1759003723885,0.00239618,4005.7,4005.6,2.11078902]
[1759003724085,0.31769618,4005.7,4005.6,2.11078902]
[1759003724680,0.54019618,4005.7,4005.6,2.11078902]
[1759003725084,0.54019618,4005.7,4005.6,2.11356315]
[1759003725688,0.54019618,4005.7,4005.6,1.44211]
[1759003726086,0.54019618,4005.7,4005.6,2.11356811]
[1759003726487,0.54019618,4005.7,4005.6,2.11359088]
[1759003726887,0.54019618,4005.7,4005.6,1.86259088]
[1759003727086,0.54019618,4005.7,4005.6,2.11359088]
[1759003727285,0.54019618,4005.7,4005.6,1.44211]
[1759003727780,0.54019618,4005.7,4005.6,0.993]
[1759003727980,0.75629618,4005.7,4005.6,1.6645157]
[1759003729389,0.75629618,4005.7,4005.6,0.993]
[1759003731789,0.75629618,4005.7,4005.6,1.44211]
[1759003732382,0.54019618,4005.7,4005.6,1.44211]
[1759003732589,0.00239618,4005.7,4005.6,1.44211]
[1759003733290,0.34149618,4005.7,4005.6,1.44211]
[1759003734289,0.34149618,4005.7,4005.6,2.33487085]
[1759003734688,0.54689618,4005.7,4005.6,2.33487085]
[1759003736895,0.00239618,4005.7,4005.6,2.33487085]
[1759003737495,0.00239618,4005.7,4005.6,1.44211]
[1759003738994,0.00239618,4005.7,4005.6,1.64165631]
[1759003739396,0.00239618,4005.7,4005.6,2.7847707]
[1759003739998,0.00239618,4005.7,4005.6,2.9865605]
[1759003742399,3.2078,4006.5,4006.4,0.7659]
[1759003742598,3.2078,4006.5,4006.4,2.46053337]
[1759003743198,3.2078,4006.5,4006.4,3.13120535]
[1759003743403,3.2078,4006.5,4006.4,3.13334206]
[1759003743404,3.21072756,4006.5,4006.4,3.13334206]
[1759003743596,3.54982756,4006.5,4006.4,3.13334206]
[1759003745006,0.00292756,4006.5,4006.4,3.13334206]
[1759003747105,0.00292756,4006.5,4006.4,2.46267008]
[1759003749696,3.2078,4007.0,4006.9,0.44897]
[1759003749897,3.11213714,4009.0,4007.1,0.3257]
[1759003749898,0.7486,4007.9,4007.1,0.3257]
[1759003750099,1.19755,4007.1,4006.6,4.32621022]
[1759003750301,0.4289,4006.7,4006.6,0.449]
[1759003750508,0.7486,4006.7,4006.6,0.7]
[1759003750812,0.75079226,4006.7,4006.6,0.9123]
[1759003751307,0.75079226,4006.7,4006.6,0.2123]
[1759003751509,1.19979226,4006.7,4006.6,0.251]
[1759003751710,0.75079226,4006.7,4006.6,0.251]
[1759003752502,0.75079226,4006.7,4006.5,0.44901]
[1759003752503,0.3197,4006.6,4006.5,0.44901]
[1759003752699,0.7486,4006.6,4006.5,0.91231]
[1759003752911,0.7486,4006.6,4006.5,0.4633]
[1759003755113,0.45118226,4006.7,4006.4,2.8898903]
[1759003755114,1.32331,4006.5,4006.4,0.00213671]
[1759003755312,1.32331,4006.5,4006.4,0.25313671]
[1759003760021,0.8743,4006.5,4006.4,0.25313671]
[1759003765020,0.8743,4006.5,4006.4,0.70215671]
[1759003766610,0.8743,4006.5,4006.4,0.45115671]
[1759003766811,0.8743,4006.5,4006.2,1.11845022]
[1759003766812,0.4255,4006.3,4006.2,1.11845022]
[1759003767015,0.7671,4006.3,4006.2,0.251]
[1759003767819,0.7671,4006.3,4006.2,0.70262366]
[1759003769918,0.7671,4006.3,4006.2,0.45162366]
[1759003770123,0.7671,4006.3,4006.2,0.70262366]
[1759003774926,0.7671,4006.3,4006.2,0.25358366]
[1759003775330,0.7671,4006.3,4006.2,0.00258366]
[1759003775530,0.7671,4006.3,4006.2,0.25358366]
[1759003775733,0.7671,4006.3,4006.2,0.70262366]
[1759003778031,0.7671,4006.3,4006.2,0.91872366]
[1759003778527,0.7671,4006.3,4006.2,1.24702366]
[1759003779324,3.20999226,4006.7,4006.6,0.449]
[1759003779527,3.20999226,4006.7,4006.2,1.01888366]
[1759003779528,3.97709226,4006.7,4006.2,1.44621703]
[1759003779722,0.7671,4006.3,4006.2,0.66772366]
[1759003780026,0.7671,4006.3,4006.2,0.91872366]
[1759003780228,0.7671,4006.3,4006.2,1.24702366]
[1759003780422,0.7671,4006.3,4006.2,1.46792366]
[1759003781028,0.7671,4006.3,4006.2,0.91872366]
[1759003783126,0.7671,4006.3,4006.2,0.66772366]
[1759003783327,0.7671,4006.3,4006.2,0.91872366]
[1759003785029,0.7671,4006.3,4006.2,1.24702366]
[1759003786231,0.7671,4006.3,4006.2,0.99602366]
[1759003786430,0.7671,4006.3,4006.2,1.24702366]
[1759003786929,0.7671,4006.3,4006.2,1.46792366]
[1759003787130,0.559,4006.4,4006.3,1.21432]
[1759003787728,0.7671,4006.4,4006.3,1.21432]
[1759003795338,0.7671,4006.4,4006.3,0.88602]
[1759003795540,0.7671,4006.4,4006.3,1.20802]
[1759003796143,0.7671,4006.4,4006.3,1.87945334]
[1759003796343,0.559,4006.4,4006.3,1.87945334]
[1759003798244,0.3416,4006.4,4006.3,1.87945334]
[1759003798442,3.526,4006.5,4006.4,1.19632]
[1759003798641,3.7519,4006.5,4006.4,1.19632]
[1759003800340,3.9711,4006.5,4006.4,1.19632]
[1759003800943,3.9711,4006.5,4006.4,0.7473]
[1759003802147,3.9711,4006.5,4006.4,1.19632]
[1759003802543,3.526,4006.5,4006.4,1.19632]
[1759003803860,3.526,4006.5,4006.4,1.86775334]
[1759003804152,0.3182,4006.5,4006.4,1.86775334]
[1759003807765,0.54629226,4006.7,4006.6,0.7473]
[1759003807964,0.76549226,4006.7,4006.6,0.9983]
[1759003808165,0.76549226,4006.7,4006.6,0.4983]
[1759003808464,0.76549226,4006.7,4006.6,0.2593]
[1759003815969,0.76549226,4006.7,4006.6,0.251]
[1759003817469,0.76549226,4006.7,4006.5,0.449]
[1759003817671,0.76549226,4006.7,4006.6,0.251]
[1759003817672,0.76789226,4006.7,4006.6,0.251]
[1759003821075,0.886,4006.5,4006.4,0.67143334]
[1759003821374,0.886,4006.5,4006.4,0.251]
[1759003822472,0.762,4006.4,4006.3,0.67143334]
[1759003822876,0.762,4006.4,4006.3,0.92243334]
[1759003823579,0.762,4006.4,4006.3,0.92284604]
[1759003824170,0.762,4006.4,4006.3,0.67184604]
[1759003824369,0.762,4006.4,4006.3,0.92284604]
[1759003825972,0.762,4006.4,4006.3,0.67184604]
[1759003826176,0.762,4006.4,4006.3,0.251]
[1759003826970,0.762,4006.4,4006.3,0.2595]
[1759003827173,0.762,4006.4,4006.3,0.268]
[1759003828169,0.5447,4006.4,4006.3,0.268]
[1759003828375,0.3206,4006.4,4006.3,0.2733]
[1759003830676,0.3206,4006.4,4006.3,0.268]
[1759003831977,0.546,4006.4,4006.3,0.268]
[1759003833178,0.546,4006.4,4006.3,0.017]
[1759003833381,0.546,4006.4,4006.3,0.268]
[1759003835283,0.546,4006.4,4006.3,0.017]
[1759003835483,0.546,4006.4,4006.3,0.268]
[1759003836582,0.7666,4006.4,4006.3,0.71703]
[1759003839884,0.7666,4006.4,4006.3,3.92483]
[1759003842385,0.3206,4006.4,4006.3,3.93013]
[1759003842582,0.3206,4006.4,4006.3,5.2721969]
[1759003844587,0.3206,4006.4,4006.3,6.7149211]
[1759003846189,0.3206,4006.4,4006.3,5.3728542]
[1759003846690,0.3206,4006.4,4006.3,6.7149211]
[1759003848185,0.3206,4006.4,4006.3,5.3728542]
[1759003848994,0.3206,4006.4,4006.3,6.7149211]
[1759003849194,0.3206,4006.4,4006.3,5.3728542]
[1759003852794,0.3206,4006.4,4006.3,6.7149211]
[1759003861095,0.33439226,4006.7,4006.6,0.449]
[1759003861295,0.33439226,4006.7,4006.6,3.6056484]
[1759003862196,0.33439226,4006.7,4006.6,4.9477153]
[1759003862396,0.00219226,4006.7,4006.6,3.6056484]
[1759003863402,0.00219226,4006.7,4006.6,8.6056484]
[1759003867606,0.3322,4007.0,4006.9,0.46917]
[1759003867906,0.6782,4007.5,4007.4,0.44891]
[1759003868101,0.6782,4007.5,4007.4,5.3658342]
[1759003868611,0.90485626,4007.5,4007.4,5.3658342]
[1759003869706,0.90485626,4007.5,4007.4,5.1148342]
[1759003870008,0.90485626,4007.5,4007.4,5.3658342]
[1759003870198,0.90485626,4007.5,4007.4,5.5625408]
[1759003870398,0.90485626,4007.5,4007.4,5.3658342]
[1759003871106,0.90485626,4007.5,4007.4,6.03460313]
[1759003871309,0.90485626,4007.5,4007.4,5.3658342]
[1759003872111,0.90485626,4007.5,4007.4,6.03458475]
[1759003873205,0.68125626,4007.5,4007.4,6.03968475]
[1759003875612,0.68125626,4007.5,4007.4,6.03458475]
[1759003878109,0.46095626,4007.5,4007.4,6.03968475]
[1759003880919,0.46095626,4007.5,4007.4,5.3709342]
[1759003883914,0.68695626,4007.5,4007.4,5.3658342]
[1759003886417,0.68695626,4007.5,4007.4,5.3708342]
[1759003886719,0.68695626,4007.5,4007.4,5.3658342]
[1759003887219,0.68695626,4007.5,4007.4,6.25806665]
[1759003887723,0.90455626,4007.5,4007.4,4.11543245]
[1759003887917,0.90455626,4007.5,4007.4,3.4588]
[1759003887918,1.35345626,4007.5,4007.4,3.4588]
[1759003891216,1.35345626,4007.5,4007.4,4.35103245]
[1759003891823,1.35345626,4007.5,4007.4,4.10003245]
[1759003892116,1.35345626,4007.5,4007.4,4.35103245]
[1759003893120,1.35345626,4007.5,4007.4,3.4588]
[1759003894827,1.35345626,4007.5,4007.4,3.2078]
[1759003895123,1.35345626,4007.5,4007.4,4.12945302]
[1759003895124,6.35345626,4007.5,4007.4,4.12945302]
[1759003895715,6.35345626,4007.5,4007.4,3.87845302]
[1759003895923,6.35345626,4007.5,4007.4,4.12945302]
[1759003897333,6.35345626,4007.5,4007.4,3.87845302]
[1759003897620,6.35345626,4007.5,4007.1,1.4427242]
[1759003897621,0.3194,4007.2,4007.1,0.67065302]
[1759003897829,0.7634,4007.2,4007.1,0.92165302]
[1759003898219,0.7634,4007.2,4007.1,0.251]
[1759003900124,0.89294,4007.1,4006.9,5.32117722]
[1759003900325,1.21234,4007.1,4007.0,0.251]
[1759003905021,0.89294,4007.1,4006.9,3.2078]
[1759003905224,0.8915,4007.0,4006.9,3.2078]
[1759003905422,0.8915,4007.0,4006.9,3.4588]
[1759003907430,1.34045,4007.0,4006.9,3.4588]
[1759003907727,1.34045,4007.0,4006.9,3.4669]
[1759003908424,0.8915,4007.0,4006.9,3.91587]
[1759003908728,0.6739,4007.0,4006.9,6.39748926]
[1759003909324,0.6739,4007.0,4006.9,6.39248926]
[1759003910228,0.6739,4007.0,4006.9,6.39748926]
[1759003911722,0.3194,4007.0,4006.9,5.72683624]
[1759003911937,0.3194,4007.4,4007.3,0.0162]
[1759003912230,0.5458,4007.4,4007.3,0.2672]
[1759003915134,0.7634,4007.4,4007.3,0.2672]
[1759003916630,0.5458,4007.4,4007.3,0.2672]
[1759003916829,0.5458,4007.4,4007.3,0.2722]
[1759003917029,0.5458,4007.4,4007.3,0.2672]
[1759003918032,0.7653,4007.4,4007.3,0.2672]
[1759003922138,0.7653,4007.4,4007.3,0.93667892]
[1759003925642,0.7653,4007.4,4007.3,0.68567892]
[1759003925842,0.7653,4007.4,4007.3,0.93667892]
[1759003930446,0.7653,4007.4,4007.3,1.38559892]
[1759003930642,0.7653,4007.4,4007.3,0.71612]
[1759003933143,0.3194,4007.4,4007.3,0.72122]
[1759003933639,0.3194,4007.4,4007.3,0.71612]
[1759003933845,0.5317,4007.4,4007.3,0.71612]
[1759003935143,0.5317,4007.4,4007.3,1.61018114]
[1759003935742,0.5317,4007.4,4007.3,0.71612]
[1759003936040,0.7587,4007.4,4007.3,0.71612]
[1759003940542,0.7587,4007.4,4007.3,0.46512]
[1759003940740,0.7587,4007.4,4007.3,0.71612]
[1759003943149,1.20761,4007.4,4007.3,0.69992]
[1759003943341,0.7587,4007.4,4007.3,0.69992]
[1759003946652,0.7587,4007.4,4007.3,0.44892]
[1759003946952,0.7587,4007.4,4007.3,0.69992]
[1759003947452,1.18942,4007.3,4007.1,1.78728867]
[1759003947653,0.86552,4007.3,4007.2,0.251]
[1759003948151,0.86554,4007.1,4007.0,0.44895]
[1759003948351,1.18944,4007.1,4007.0,0.69995]
[1759003948750,1.18944,4007.1,4006.9,3.2078]
[1759003948751,0.8696,4007.0,4006.9,3.2078]
[1759003949051,0.8696,4007.0,4006.9,4.35273077]
[1759003949249,0.8696,4007.0,4006.9,3.4588]
[1759003949656,0.8696,4007.0,4006.9,3.2078]
[1759003949856,0.8696,4007.0,4006.9,3.4588]
[1759003952352,0.8696,4007.0,4006.9,3.2078]
[1759003952553,0.8696,4007.0,4006.9,3.4588]
[1759003952753,0.8696,4007.0,4006.9,3.2078]
[1759003953051,0.8696,4007.0,4006.9,3.4588]
[1759003957360,1.31855,4007.0,4006.9,3.4588]
[1759003957760,1.31855,4007.0,4006.9,3.90777]
[1759003958464,1.31855,4007.0,4006.9,3.4588]
[1759003960864,1.31855,4007.0,4006.9,3.2078]
[1759003961062,1.31855,4007.0,4006.9,4.12877912]
[1759003961568,1.31855,4007.0,4006.9,0.66997912]
[1759003961757,1.18948,4006.8,4006.6,0.66997912]
[1759003961955,1.18948,4006.8,4006.7,0.251]
[1759003963352,0.3239,4006.7,4006.6,0.66997912]
[1759003963560,0.7405,4006.7,4006.6,0.92097912]
[1759003964262,0.7405,4006.7,4006.6,0.251]
[1759003964865,1.1895,4006.6,4006.5,0.66997912]
[1759003965066,1.1895,4006.6,4006.5,0.251]
[1759003967066,0.5457,4006.5,4006.4,3.87777912]
[1759003967367,0.8696,4006.5,4006.4,4.12877912]
[1759003968769,0.8696,4006.5,4006.4,3.87777912]
[1759003968969,0.8696,4006.5,4006.4,4.12877912]
[1759003969866,0.8696,4006.5,4006.4,3.87777912]
[1759003970170,0.8696,4006.5,4006.4,4.12877912]
[1759003973363,1.31861,4006.5,4006.4,4.12877912]
[1759003973562,0.88682,4006.4,4006.3,0.66997912]
[1759003973774,1.20213,4006.3,4006.2,0.00258366]
[1759003974072,2.64518364,4006.3,4006.2,0.00258366]
[1759003974376,2.64518364,4006.3,4006.2,0.25358366]
[1759003975277,1.01467,4006.0,4005.9,3.2158]
[1759003975475,1.32997,4006.0,4005.9,3.4668]
[1759003976375,1.32997,4006.0,4005.9,3.46862579]
[1759003978977,1.32997,4006.0,4005.9,3.21762579]
[1759003979179,1.32997,4006.0,4005.9,3.46862579]
[1759003982479,1.32997,4006.0,4005.9,3.47662579]
[1759003983483,1.32997,4006.0,4005.9,3.46862579]
[1759003984688,1.32997,4006.0,4005.9,0.00182579]
[1759003984878,0.7531,4005.6,4005.5,0.66997912]
[1759003985182,2.19615364,4005.6,4005.5,0.259]
[1759003985383,1.20221,4005.6,4005.5,0.259]
[1759003985984,1.20221,4005.6,4005.5,0.26208183]
[1759003988188,1.20221,4005.6,4005.5,0.01108183]
[1759003988495,1.20221,4005.6,4005.5,0.25408183]
[1759003989485,1.20221,4005.6,4005.5,0.00308183]
[1759003989689,1.20221,4005.6,4005.5,0.25408183]
[1759003990089,1.20221,4005.6,4005.5,0.00308183]
[1759003990288,0.44914,4005.3,4005.2,0.66997912]
[1759003990587,1.19164,4005.3,4005.2,0.92947912]
[1759003991187,1.19164,4005.3,4005.2,0.68061534]
[1759003991490,1.19164,4005.3,4005.2,0.26163622]
[1759003993091,1.19164,4005.3,4005.2,0.25313622]
[1759003993488,1.19164,4005.3,4005.2,0.00213622]
[1759003993788,1.19164,4005.3,4005.2,0.25313622]
[1759003994892,1.19164,4005.3,4005.2,0.00213622]
[1759004001784,1.19164,4005.3,4005.2,0.01063622]
[1759004002690,1.11208,4005.0,4004.9,1.44305364]
[1759004003195,1.31798,4005.0,4004.9,1.44305364]
[1759004003599,1.31798,4005.0,4004.9,1.44548297]
[1759004004702,0.8688,4005.0,4004.9,1.44548297]
[1759004005394,0.8688,4005.0,4004.9,0.00242933]
[1759004007002,0.8688,4005.0,4004.9,0.45161933]
[1759004008392,0.6629,4005.0,4004.9,0.45161933]
[1759004008596,0.3308,4005.0,4004.9,0.45161933]
[1759004009502,0.6663,4005.5,4005.4,0.44913]
[1759004009701,0.6663,4005.5,4005.4,0.70013]
[1759004010694,0.8809,4005.5,4005.4,0.70013]
[1759004012806,0.8809,4005.5,4005.4,0.251]
[1759004013103,0.3292,4005.4,4005.3,0.44913]
[1759004013304,0.4254,4005.4,4005.3,0.251]
[1759004013607,0.7546,4005.4,4005.3,0.251]
[1759004015706,0.3292,4005.3,4005.2,1.11959794]
[1759004016009,0.7546,4005.3,4005.2,1.37059794]
[1759004019301,0.7546,4005.3,4005.2,0.70015]
[1759004019501,0.7546,4005.3,4005.2,0.44915]
[1759004019710,0.7546,4005.3,4005.2,0.70015]
[1759004027522,0.7546,4005.3,4005.2,0.44915]
[1759004027721,0.7546,4005.3,4005.2,0.70015]
[1759004031631,0.3292,4005.3,4005.2,0.70015]
[1759004032334,0.54,4005.3,4005.2,0.70015]
[1759004034137,0.7546,4005.3,4005.2,0.70015]
[1759004035339,0.7546,4005.3,4005.2,1.59408077]
[1759004047143,1.20374,4005.3,4005.2,1.14493077]
[1759004048049,1.20374,4005.3,4005.2,1.59408077]
[1759004052257,1.20374,4005.3,4005.2,1.34308077]
[1759004052557,1.20374,4005.3,4005.2,1.59408077]
[1759004053260,1.20374,4005.3,4005.2,1.14493077]
[1759004054761,1.20374,4005.3,4005.2,0.44916]
[1759004054961,1.20374,4005.3,4005.2,0.70016]
[1759004055161,0.8671,4005.0,4004.9,0.00242933]
[1759004055361,0.8671,4005.0,4004.9,1.15029495]
[1759004055859,0.8671,4005.0,4004.9,1.59948495]
[1759004056867,1.31628,4005.0,4004.9,1.15029495]
[1759004057054,1.31628,4005.0,4004.9,0.25342933]
[1759004057254,1.31628,4005.0,4004.9,0.70261933]
[1759004057557,1.31628,4005.0,4004.9,0.00242933]
[1759004057768,1.31628,4005.0,4004.9,0.92591254]
[1759004057963,1.31628,4005.0,4004.9,0.67491254]
[1759004058154,1.31628,4005.0,4004.9,0.92591254]
[1759004058464,1.31628,4005.0,4004.9,0.25342933]
[1759004077675,1.31628,4005.0,4004.9,0.70261933]
[1759004078668,0.8671,4005.0,4004.9,0.70261933]
[1759004079879,0.8671,4005.0,4004.9,0.45161933]